{"text_format":"1","workbook":"xlsx","n_sheets":1,"sheets":["Toplu Ücret Onayı"],"not_rendered":{"charts":0,"images":0,"macros":1,"external_links":0,"defined_names":2,"comments":0,"pivot_tables":0},"unopened":[],"bounds":{"document_bytes":16777216,"sheet_cells":100000,"rows_first":2000,"rows_last":500,"rows_between":2000,"halvings":0,"cell_chars":16384,"cell_head_chars":4096},"cells_cut":0,"cells_raw":0,"read":"whole","date_system":"1900"}

{"sheet":"Toplu Ücret Onayı","index":0,"n_rows":241,"n_cols":58,"rows_kept":241,"cut":false,"hidden":false,"merged":[[97,3,97,4],[97,6,97,9],[98,13,98,28],[99,1,99,4],[99,13,99,28],[100,1,100,4],[100,13,100,28],[105,6,105,10],[101,1,101,4],[102,1,102,4],[103,1,103,28],[104,1,104,28],[102,6,102,10],[4,12,4,13],[4,8,5,8],[4,18,5,18],[4,7,5,7],[97,19,97,26],[4,3,5,3],[0,21,0,28],[2,27,2,28],[4,20,5,20],[4,21,5,21],[4,22,5,22],[3,28,5,28],[4,10,4,11],[0,1,0,6],[2,13,2,17],[2,8,2,12],[4,2,5,2],[1,1,1,28],[2,1,2,2],[2,3,2,7],[2,18,2,26],[4,1,5,1],[3,1,3,27],[4,14,5,14],[4,16,5,16],[4,9,5,9],[4,27,5,27],[4,5,5,5],[4,15,5,15],[4,6,5,6],[4,23,5,23],[4,24,5,24],[4,19,5,19],[4,17,5,17],[4,25,5,25],[4,26,5,26],[4,4,5,4]]}
[null,"Sarı hücrelerde formül vardır. Bu hücrelere hiçbir veri girmeyiniz!!!",null,null,null,null,null,null,null,null,null,null,null,null,null,null,null,null,null,null,null,"Ahmet BULUT / Şube Müdürü",null,null,null,null,null,null,null,null,"Harun"]
[null,"2020 - 2021 EĞİTİM ÖĞRETİM YILI  İNÖNÜ ORTAOKULU EK DERS ÜCRET ONAYI ÇİZELGESİDİR",null,null,null,null,null,null,null,null,null,null,null,null,null,null,null,null,null,null,null,null,null,null,null,null,null,null,null,null,"Harun"]
[null,"OKUL ADI   :",null,"İnönü Ortaokulu",null,null,null,null,"AİT OLDUĞU AY   :",null,null,null,null,"OCAK",null,null,null,null,"AİT OLDUĞU YIL    :",null,null,null,null,null,null,null,null,2021,null,null,"Harun"]
[null,"Ö    Ğ    R    E    T    M    E    N    İ    N",null,null,null,null,null,null,null,null,null,null,null,null,null,null,null,null,null,null,null,null,null,null,null,null,null,null,"Açıklama",null,"Harun"]
[null,"SIRA NO","T.C. Kimlik No","Adı Soyadı","Mezun Olduğu Okul","Branşı","Görevi / Kadrosu","Diğer Okul ve Kurumlardaki Ders Görevi","Aylık Karşılığı Ders Görevi","Ders Nit. Yönetim Görevi","Ek Ders",null,"Öğrenci Sosyal ve Kişilik Hiz.",null,"Hazırlık ve Planlama","Nöbet Görevi","İkili Eğitim/Öğretim","Egzersiz","Belleticilik","Destek. Yetiş. ve Okuma-Yazma Kursları","İYEP","Evde Eğitim","Destek Eğitimi","Tam Gün Tam Yıl/ Yüzyüze Eğitim","İşletmelerde Mesleki Eğitim","Plan. ve Bak. Onarım","Toplam Saat (Ücret Karşılığı)","Fiilen Okuttuğu Toplam Ders Saati",null,null,"Harun"]
[null,null,null,null,null,null,null,null,null,null,"Zorunlu","İsteğe Bağlı","Kulüp Danışman Öğretmeni","Şube Rehber Öğretmenliği",null,null,null,null,null,null,null,null,null,null,null,null,null,null,null,null,"Harun",null,null,null,null,null,null,null,null,null,null,null,null,null,null,null,null,null,null,null,null,null,null,null,"HAZ.PLAN (FİİLEN OK. DERS","10 SAATE 1 SAAT","10 SAATE 1 SAAT TOPLAMI","10+1             20+2             30+3"]
[null,{"$f":"IF(D7<>\"\",\"1\",\"\")","v":"1"},99999999999,"Ali KAYA","Fırat Üni. Eğitim Fak. Sınıf Öğretmenliği","Sınıf Öğretmeni","Rehber Öğretmen","Var",15,null,6,6,null,null,{"$f":"IF(BC7>29,\"3\",IF(BC7>19,\"2\",IF(BC7>=10,\"1\",IF(BC7<10,\"\"))))","v":""},null,null,null,null,null,null,null,null,null,null,null,{"$f":"IF(D7<>\"\",SUM(J7:Z7)+BF7,\"\")","v":12},{"$f":"IF(D7<>\"\",SUM(I7,K7,L7,T7,U7,V7,W7,X7),\"\")","v":27},null,null,{"$f":"IF(C7>0,\"Harun\",\"\")","v":"Harun"},null,null,null,null,null,null,null,null,null,null,null,null,null,null,null,null,null,null,null,null,null,null,null,{"$f":"(I7+K7+L7+T7+U7+V7+W7+X7)*BD7","v":0},{"$f":"IF(G7=\"Müdür\",\"0\",IF(G7=\"Müdür Yardımcısı\",\"0\",IF(G7=\"Müdür Başyardımcısı\",\"0\",IF(G7=\"Rehber Öğretmen\",\"0\",IF(G7=\"Bil. Formatörü\",\"0\",IF(G7=\"Ücretli Öğretmen\",\"0\",IF(G7=\"\",\"0\",\"1\")))))))","v":"0"},{"$f":"+O7","v":""},{"$f":"IF(BC7>29,\"3\",IF(BC7>19,\"2\",IF(BC7>=10,\"1\",IF(BC7<10,\"0\"))))","v":"0"}]
[null,{"$f":"IF(D8<>\"\",B7+1,\"\")","v":2},88888888888,"Veli KAYA","Fırat Üni. Eğitim Fak. Türkçe Öğretmenliği","Türkçe","Müdür",null,15,null,6,6,null,null,{"$f":"IF(BC8>29,\"3\",IF(BC8>19,\"2\",IF(BC8>=10,\"1\",IF(BC8<10,\"\"))))","v":""},null,null,null,null,null,null,null,null,null,null,null,{"$f":"IF(D8<>\"\",SUM(J8:Z8)+BF8,\"\")","v":12},{"$f":"IF(D8<>\"\",SUM(I8,K8,L8,T8,U8,V8,W8,X8),\"\")","v":27},null,null,{"$f":"IF(C8>0,\"Harun\",\"\")","v":"Harun"},null,null,null,null,null,null,null,null,null,null,null,null,null,null,null,null,null,null,null,null,null,null,null,0,{"$f":"IF(G8=\"Müdür\",\"0\",IF(G8=\"Müdür Yardımcısı\",\"0\",IF(G8=\"Müdür Başyardımcısı\",\"0\",IF(G8=\"Rehber Öğretmen\",\"0\",IF(G8=\"Bil. Formatörü\",\"0\",IF(G8=\"Ücretli Öğretmen\",\"0\",IF(G8=\"\",\"0\",\"1\")))))))","v":"0"},{"$f":"+O8","v":""},"0"]
[null,{"$f":"IF(D9<>\"\",B8+1,\"\")","v":""},null,null,null,null,null,null,null,null,null,null,null,null,"",null,null,null,null,null,null,null,null,null,null,null,"","",null,null,"",null,null,null,null,null,null,null,null,null,null,null,null,null,null,null,null,null,null,null,null,null,null,null,0,"0","","0"]
[null,"",null,null,null,null,null,null,null,null,null,null,null,null,"",null,null,null,null,null,null,null,null,null,null,null,"","",null,null,"",null,null,null,null,null,null,null,null,null,null,null,null,null,null,null,null,null,null,null,null,null,null,null,0,"0","","0"]
[null,"",null,null,null,null,null,null,null,null,null,null,null,null,"",null,null,null,null,null,null,null,null,null,null,null,"","",null,null,"",null,null,null,null,null,null,null,null,null,null,null,null,null,null,null,null,null,null,null,null,null,null,null,0,"0","","0"]
[null,"",null,null,null,null,null,null,null,null,null,null,null,null,"",null,null,null,null,null,null,null,null,null,null,null,"","",null,null,"",null,null,null,null,null,null,null,null,null,null,null,null,null,null,null,null,null,null,null,null,null,null,null,0,"0","","0"]
[null,"",null,null,null,null,null,null,null,null,null,null,null,null,"",null,null,null,null,null,null,null,null,null,null,null,"","",null,null,"",null,null,null,null,null,null,null,null,null,null,null,null,null,null,null,null,null,null,null,null,null,null,null,0,"0","","0"]
[null,"",null,null,null,null,null,null,null,null,null,null,null,null,"",null,null,null,null,null,null,null,null,null,null,null,"","",null,null,"",null,null,null,null,null,null,null,null,null,null,null,null,null,null,null,null,null,null,null,null,null,null,null,0,"0","","0"]
[null,"",null,null,null,null,null,null,null,null,null,null,null,null,"",null,null,null,null,null,null,null,null,null,null,null,"","",null,null,"",null,null,null,null,null,null,null,null,null,null,null,null,null,null,null,null,null,null,null,null,null,null,null,0,"0","","0"]
[null,"",null,null,null,null,null,null,null,null,null,null,null,null,"",null,null,null,null,null,null,null,null,null,null,null,"","",null,null,"",null,null,null,null,null,null,null,null,null,null,null,null,null,null,null,null,null,null,null,null,null,null,null,0,"0","","0"]
[null,"",null,null,null,null,null,null,null,null,null,null,null,null,"",null,null,null,null,null,null,null,null,null,null,null,"","",null,null,"",null,null,null,null,null,null,null,null,null,null,null,null,null,null,null,null,null,null,null,null,null,null,null,0,"0","","0"]
[null,"",null,null,null,null,null,null,null,null,null,null,null,null,"",null,null,null,null,null,null,null,null,null,null,null,"","",null,null,"",null,null,null,null,null,null,null,null,null,null,null,null,null,null,null,null,null,null,null,null,null,null,null,0,"0","","0"]
[null,"",null,null,null,null,null,null,null,null,null,null,null,null,"",null,null,null,null,null,null,null,null,null,null,null,"","",null,null,"",null,null,null,null,null,null,null,null,null,null,null,null,null,null,null,null,null,null,null,null,null,null,null,0,"0","","0"]
[null,"",null,null,null,null,null,null,null,null,null,null,null,null,"",null,null,null,null,null,null,null,null,null,null,null,"","",null,null,"",null,null,null,null,null,null,null,null,null,null,null,null,null,null,null,null,null,null,null,null,null,null,null,0,"0","","0"]
[null,"",null,null,null,null,null,null,null,null,null,null,null,null,"",null,null,null,null,null,null,null,null,null,null,null,"","",null,null,"",null,null,null,null,null,null,null,null,null,null,null,null,null,null,null,null,null,null,null,null,null,null,null,0,"0","","0"]
[null,"",null,null,null,null,null,null,null,null,null,null,null,null,"",null,null,null,null,null,null,null,null,null,null,null,"","",null,null,"",null,null,null,null,null,null,null,null,null,null,null,null,null,null,null,null,null,null,null,null,null,null,null,0,"0","","0"]
[null,"",null,null,null,null,null,null,null,null,null,null,null,null,"",null,null,null,null,null,null,null,null,null,null,null,"","",null,null,"",null,null,null,null,null,null,null,null,null,null,null,null,null,null,null,null,null,null,null,null,null,null,null,0,"0","","0"]
[null,"",null,null,null,null,null,null,null,null,null,null,null,null,"",null,null,null,null,null,null,null,null,null,null,null,"","",null,null,"",null,null,null,null,null,null,null,null,null,null,null,null,null,null,null,null,null,null,null,null,null,null,null,0,"0","","0"]
[null,"",null,null,null,null,null,null,null,null,null,null,null,null,"",null,null,null,null,null,null,null,null,null,null,null,"","",null,null,"",null,null,null,null,null,null,null,null,null,null,null,null,null,null,null,null,null,null,null,null,null,null,null,0,"0","","0"]
[null,"",null,null,null,null,null,null,null,null,null,null,null,null,"",null,null,null,null,null,null,null,null,null,null,null,"","",null,null,"",null,null,null,null,null,null,null,null,null,null,null,null,null,null,null,null,null,null,null,null,null,null,null,0,"0","","0"]
[null,"",null,null,null,null,null,null,null,null,null,null,null,null,"",null,null,null,null,null,null,null,null,null,null,null,"","",null,null,"",null,null,null,null,null,null,null,null,null,null,null,null,null,null,null,null,null,null,null,null,null,null,null,0,"0","","0"]
[null,"",null,null,null,null,null,null,null,null,null,null,null,null,"",null,null,null,null,null,null,null,null,null,null,null,"","",null,null,"",null,null,null,null,null,null,null,null,null,null,null,null,null,null,null,null,null,null,null,null,null,null,null,0,"0","","0"]
[null,"",null,null,null,null,null,null,null,null,null,null,null,null,"",null,null,null,null,null,null,null,null,null,null,null,"","",null,null,"",null,null,null,null,null,null,null,null,null,null,null,null,null,null,null,null,null,null,null,null,null,null,null,0,"0","","0"]
[null,"",null,null,null,null,null,null,null,null,null,null,null,null,"",null,null,null,null,null,null,null,null,null,null,null,"","",null,null,"",null,null,null,null,null,null,null,null,null,null,null,null,null,null,null,null,null,null,null,null,null,null,null,0,"0","","0"]
[null,"",null,null,null,null,null,null,null,null,null,null,null,null,"",null,null,null,null,null,null,null,null,null,null,null,"","",null,null,"",null,null,null,null,null,null,null,null,null,null,null,null,null,null,null,null,null,null,null,null,null,null,null,0,"0","","0"]
[null,"",null,null,null,null,null,null,null,null,null,null,null,null,"",null,null,null,null,null,null,null,null,null,null,null,"","",null,null,"",null,null,null,null,null,null,null,null,null,null,null,null,null,null,null,null,null,null,null,null,null,null,null,{"$f":"(I32+K32+L32+T32+U32+V32+W32+X32)*BD32","v":0},{"$f":"IF(G32=\"Müdür\",\"0\",IF(G32=\"Müdür Yardımcısı\",\"0\",IF(G32=\"Müdür Başyardımcısı\",\"0\",IF(G32=\"Rehber Öğretmen\",\"0\",IF(G32=\"Bil. Formatörü\",\"0\",IF(G32=\"Ücretli Öğretmen\",\"0\",IF(G32=\"\",\"0\",\"1\")))))))","v":"0"},{"$f":"+O32","v":""},{"$f":"IF(BC32>29,\"3\",IF(BC32>19,\"2\",IF(BC32>=10,\"1\",IF(BC32<10,\"0\"))))","v":"0"}]
[null,"",null,null,null,null,null,null,null,null,null,null,null,null,"",null,null,null,null,null,null,null,null,null,null,null,"","",null,null,"",null,null,null,null,null,null,null,null,null,null,null,null,null,null,null,null,null,null,null,null,null,null,null,0,{"$f":"IF(G33=\"Müdür\",\"0\",IF(G33=\"Müdür Yardımcısı\",\"0\",IF(G33=\"Müdür Başyardımcısı\",\"0\",IF(G33=\"Rehber Öğretmen\",\"0\",IF(G33=\"Bil. Formatörü\",\"0\",IF(G33=\"Ücretli Öğretmen\",\"0\",IF(G33=\"\",\"0\",\"1\")))))))","v":"0"},{"$f":"+O33","v":""},"0"]
[null,"",null,null,null,null,null,null,null,null,null,null,null,null,"",null,null,null,null,null,null,null,null,null,null,null,"","",null,null,"",null,null,null,null,null,null,null,null,null,null,null,null,null,null,null,null,null,null,null,null,null,null,null,0,"0","","0"]
[null,"",null,null,null,null,null,null,null,null,null,null,null,null,"",null,null,null,null,null,null,null,null,null,null,null,"","",null,null,"",null,null,null,null,null,null,null,null,null,null,null,null,null,null,null,null,null,null,null,null,null,null,null,0,"0","","0"]
[null,"",null,null,null,null,null,null,null,null,null,null,null,null,"",null,null,null,null,null,null,null,null,null,null,null,"","",null,null,"",null,null,null,null,null,null,null,null,null,null,null,null,null,null,null,null,null,null,null,null,null,null,null,0,"0","","0"]
[null,"",null,null,null,null,null,null,null,null,null,null,null,null,"",null,null,null,null,null,null,null,null,null,null,null,"","",null,null,"",null,null,null,null,null,null,null,null,null,null,null,null,null,null,null,null,null,null,null,null,null,null,null,0,"0","","0"]
[null,"",null,null,null,null,null,null,null,null,null,null,null,null,"",null,null,null,null,null,null,null,null,null,null,null,"","",null,null,"",null,null,null,null,null,null,null,null,null,null,null,null,null,null,null,null,null,null,null,null,null,null,null,0,"0","","0"]
[null,"",null,null,null,null,null,null,null,null,null,null,null,null,"",null,null,null,null,null,null,null,null,null,null,null,"","",null,null,"",null,null,null,null,null,null,null,null,null,null,null,null,null,null,null,null,null,null,null,null,null,null,null,0,"0","","0"]
[null,"",null,null,null,null,null,null,null,null,null,null,null,null,"",null,null,null,null,null,null,null,null,null,null,null,"","",null,null,"",null,null,null,null,null,null,null,null,null,null,null,null,null,null,null,null,null,null,null,null,null,null,null,0,"0","","0"]
[null,"",null,null,null,null,null,null,null,null,null,null,null,null,"",null,null,null,null,null,null,null,null,null,null,null,"","",null,null,"",null,null,null,null,null,null,null,null,null,null,null,null,null,null,null,null,null,null,null,null,null,null,null,0,"0","","0"]
[null,"",null,null,null,null,null,null,null,null,null,null,null,null,"",null,null,null,null,null,null,null,null,null,null,null,"","",null,null,"",null,null,null,null,null,null,null,null,null,null,null,null,null,null,null,null,null,null,null,null,null,null,null,0,"0","","0"]
[null,"",null,null,null,null,null,null,null,null,null,null,null,null,"",null,null,null,null,null,null,null,null,null,null,null,"","",null,null,"",null,null,null,null,null,null,null,null,null,null,null,null,null,null,null,null,null,null,null,null,null,null,null,0,"0","","0"]
[null,"",null,null,null,null,null,null,null,null,null,null,null,null,"",null,null,null,null,null,null,null,null,null,null,null,"","",null,null,"",null,null,null,null,null,null,null,null,null,null,null,null,null,null,null,null,null,null,null,null,null,null,null,0,"0","","0"]
[null,"",null,null,null,null,null,null,null,null,null,null,null,null,"",null,null,null,null,null,null,null,null,null,null,null,"","",null,null,"",null,null,null,null,null,null,null,null,null,null,null,null,null,null,null,null,null,null,null,null,null,null,null,0,"0","","0"]
[null,"",null,null,null,null,null,null,null,null,null,null,null,null,"",null,null,null,null,null,null,null,null,null,null,null,"","",null,null,"",null,null,null,null,null,null,null,null,null,null,null,null,null,null,null,null,null,null,null,null,null,null,null,0,"0","","0"]
[null,"",null,null,null,null,null,null,null,null,null,null,null,null,"",null,null,null,null,null,null,null,null,null,null,null,"","",null,null,"",null,null,null,null,null,null,null,null,null,null,null,null,null,null,null,null,null,null,null,null,null,null,null,0,"0","","0"]
[null,"",null,null,null,null,null,null,null,null,null,null,null,null,"",null,null,null,null,null,null,null,null,null,null,null,"","",null,null,"",null,null,null,null,null,null,null,null,null,null,null,null,null,null,null,null,null,null,null,null,null,null,null,0,"0","","0"]
[null,"",null,null,null,null,null,null,null,null,null,null,null,null,"",null,null,null,null,null,null,null,null,null,null,null,"","",null,null,"",null,null,null,null,null,null,null,null,null,null,null,null,null,null,null,null,null,null,null,null,null,null,null,0,"0","","0"]
[null,"",null,null,null,null,null,null,null,null,null,null,null,null,"",null,null,null,null,null,null,null,null,null,null,null,"","",null,null,"",null,null,null,null,null,null,null,null,null,null,null,null,null,null,null,null,null,null,null,null,null,null,null,0,"0","","0"]
[null,"",null,null,null,null,null,null,null,null,null,null,null,null,"",null,null,null,null,null,null,null,null,null,null,null,"","",null,null,"",null,null,null,null,null,null,null,null,null,null,null,null,null,null,null,null,null,null,null,null,null,null,null,0,"0","","0"]
[null,"",null,null,null,null,null,null,null,null,null,null,null,null,"",null,null,null,null,null,null,null,null,null,null,null,"","",null,null,"",null,null,null,null,null,null,null,null,null,null,null,null,null,null,null,null,null,null,null,null,null,null,null,0,"0","","0"]
[null,"",null,null,null,null,null,null,null,null,null,null,null,null,"",null,null,null,null,null,null,null,null,null,null,null,"","",null,null,"",null,null,null,null,null,null,null,null,null,null,null,null,null,null,null,null,null,null,null,null,null,null,null,0,"0","","0"]
[null,"",null,null,null,null,null,null,null,null,null,null,null,null,"",null,null,null,null,null,null,null,null,null,null,null,"","",null,null,"",null,null,null,null,null,null,null,null,null,null,null,null,null,null,null,null,null,null,null,null,null,null,null,0,"0","","0"]
[null,"",null,null,null,null,null,null,null,null,null,null,null,null,"",null,null,null,null,null,null,null,null,null,null,null,"","",null,null,"",null,null,null,null,null,null,null,null,null,null,null,null,null,null,null,null,null,null,null,null,null,null,null,0,"0","","0"]
[null,"",null,null,null,null,null,null,null,null,null,null,null,null,"",null,null,null,null,null,null,null,null,null,null,null,"","",null,null,"",null,null,null,null,null,null,null,null,null,null,null,null,null,null,null,null,null,null,null,null,null,null,null,0,"0","","0"]
[null,"",null,null,null,null,null,null,null,null,null,null,null,null,"",null,null,null,null,null,null,null,null,null,null,null,"","",null,null,"",null,null,null,null,null,null,null,null,null,null,null,null,null,null,null,null,null,null,null,null,null,null,null,{"$f":"(I57+K57+L57+T57+U57+V57+W57+X57)*BD57","v":0},{"$f":"IF(G57=\"Müdür\",\"0\",IF(G57=\"Müdür Yardımcısı\",\"0\",IF(G57=\"Müdür Başyardımcısı\",\"0\",IF(G57=\"Rehber Öğretmen\",\"0\",IF(G57=\"Bil. Formatörü\",\"0\",IF(G57=\"Ücretli Öğretmen\",\"0\",IF(G57=\"\",\"0\",\"1\")))))))","v":"0"},{"$f":"+O57","v":""},{"$f":"IF(BC57>29,\"3\",IF(BC57>19,\"2\",IF(BC57>=10,\"1\",IF(BC57<10,\"0\"))))","v":"0"}]
[null,"",null,null,null,null,null,null,null,null,null,null,null,null,"",null,null,null,null,null,null,null,null,null,null,null,"","",null,null,"",null,null,null,null,null,null,null,null,null,null,null,null,null,null,null,null,null,null,null,null,null,null,null,0,"0","","0"]
[null,"",null,null,null,null,null,null,null,null,null,null,null,null,"",null,null,null,null,null,null,null,null,null,null,null,"","",null,null,"",null,null,null,null,null,null,null,null,null,null,null,null,null,null,null,null,null,null,null,null,null,null,null,0,"0","","0"]
[null,"",null,null,null,null,null,null,null,null,null,null,null,null,"",null,null,null,null,null,null,null,null,null,null,null,"","",null,null,"",null,null,null,null,null,null,null,null,null,null,null,null,null,null,null,null,null,null,null,null,null,null,null,{"$f":"(I60+K60+L60+T60+U60+V60+W60+X60)*BD60","v":0},{"$f":"IF(G60=\"Müdür\",\"0\",IF(G60=\"Müdür Yardımcısı\",\"0\",IF(G60=\"Müdür Başyardımcısı\",\"0\",IF(G60=\"Rehber Öğretmen\",\"0\",IF(G60=\"Bil. Formatörü\",\"0\",IF(G60=\"Ücretli Öğretmen\",\"0\",IF(G60=\"\",\"0\",\"1\")))))))","v":"0"},{"$f":"+O60","v":""},{"$f":"IF(BC60>29,\"3\",IF(BC60>19,\"2\",IF(BC60>=10,\"1\",IF(BC60<10,\"0\"))))","v":"0"}]
[null,"",null,null,null,null,null,null,null,null,null,null,null,null,"",null,null,null,null,null,null,null,null,null,null,null,"","",null,null,"",null,null,null,null,null,null,null,null,null,null,null,null,null,null,null,null,null,null,null,null,null,null,null,0,"0","","0"]
[null,"",null,null,null,null,null,null,null,null,null,null,null,null,"",null,null,null,null,null,null,null,null,null,null,null,"","",null,null,"",null,null,null,null,null,null,null,null,null,null,null,null,null,null,null,null,null,null,null,null,null,null,null,0,"0","","0"]
[null,"",null,null,null,null,null,null,null,null,null,null,null,null,"",null,null,null,null,null,null,null,null,null,null,null,"","",null,null,"",null,null,null,null,null,null,null,null,null,null,null,null,null,null,null,null,null,null,null,null,null,null,null,0,"0","","0"]
[null,"",null,null,null,null,null,null,null,null,null,null,null,null,"",null,null,null,null,null,null,null,null,null,null,null,"","",null,null,"",null,null,null,null,null,null,null,null,null,null,null,null,null,null,null,null,null,null,null,null,null,null,null,0,"0","","0"]
[null,"",null,null,null,null,null,null,null,null,null,null,null,null,"",null,null,null,null,null,null,null,null,null,null,null,"","",null,null,"",null,null,null,null,null,null,null,null,null,null,null,null,null,null,null,null,null,null,null,null,null,null,null,0,"0","","0"]
[null,"",null,null,null,null,null,null,null,null,null,null,null,null,"",null,null,null,null,null,null,null,null,null,null,null,"","",null,null,"",null,null,null,null,null,null,null,null,null,null,null,null,null,null,null,null,null,null,null,null,null,null,null,0,"0","","0"]
[null,"",null,null,null,null,null,null,null,null,null,null,null,null,"",null,null,null,null,null,null,null,null,null,null,null,"","",null,null,"",null,null,null,null,null,null,null,null,null,null,null,null,null,null,null,null,null,null,null,null,null,null,null,0,"0","","0"]
[null,"",null,null,null,null,null,null,null,null,null,null,null,null,"",null,null,null,null,null,null,null,null,null,null,null,"","",null,null,"",null,null,null,null,null,null,null,null,null,null,null,null,null,null,null,null,null,null,null,null,null,null,null,0,"0","","0"]
[null,"",null,null,null,null,null,null,null,null,null,null,null,null,"",null,null,null,null,null,null,null,null,null,null,null,"","",null,null,"",null,null,null,null,null,null,null,null,null,null,null,null,null,null,null,null,null,null,null,null,null,null,null,0,"0","","0"]
[null,"",null,null,null,null,null,null,null,null,null,null,null,null,"",null,null,null,null,null,null,null,null,null,null,null,"","",null,null,"",null,null,null,null,null,null,null,null,null,null,null,null,null,null,null,null,null,null,null,null,null,null,null,0,"0","","0"]
[null,"",null,null,null,null,null,null,null,null,null,null,null,null,"",null,null,null,null,null,null,null,null,null,null,null,"","",null,null,"",null,null,null,null,null,null,null,null,null,null,null,null,null,null,null,null,null,null,null,null,null,null,null,0,"0","","0"]
[null,"",null,null,null,null,null,null,null,null,null,null,null,null,{"$f":"IF(BC72>29,\"3\",IF(BC72>19,\"2\",IF(BC72>=10,\"1\",IF(BC72<10,\"\"))))","v":""},null,null,null,null,null,null,null,null,null,null,null,{"$f":"IF(D72<>\"\",SUM(J72:Z72)+BF72,\"\")","v":""},{"$f":"IF(D72<>\"\",SUM(I72,K72,L72,T72,U72,V72,W72,X72),\"\")","v":""},null,null,{"$f":"IF(C72>0,\"Harun\",\"\")","v":""},null,null,null,null,null,null,null,null,null,null,null,null,null,null,null,null,null,null,null,null,null,null,null,0,"0","","0"]
[null,{"$f":"IF(D73<>\"\",B72+1,\"\")","v":""},null,null,null,null,null,null,null,null,null,null,null,null,"",null,null,null,null,null,null,null,null,null,null,null,"","",null,null,"",null,null,null,null,null,null,null,null,null,null,null,null,null,null,null,null,null,null,null,null,null,null,null,0,"0","","0"]
[null,"",null,null,null,null,null,null,null,null,null,null,null,null,"",null,null,null,null,null,null,null,null,null,null,null,"","",null,null,"",null,null,null,null,null,null,null,null,null,null,null,null,null,null,null,null,null,null,null,null,null,null,null,0,"0","","0"]
[null,"",null,null,null,null,null,null,null,null,null,null,null,null,"",null,null,null,null,null,null,null,null,null,null,null,"","",null,null,"",null,null,null,null,null,null,null,null,null,null,null,null,null,null,null,null,null,null,null,null,null,null,null,0,"0","","0"]
[null,"",null,null,null,null,null,null,null,null,null,null,null,null,"",null,null,null,null,null,null,null,null,null,null,null,"","",null,null,"",null,null,null,null,null,null,null,null,null,null,null,null,null,null,null,null,null,null,null,null,null,null,null,0,"0","","0"]
[null,"",null,null,null,null,null,null,null,null,null,null,null,null,"",null,null,null,null,null,null,null,null,null,null,null,"","",null,null,"",null,null,null,null,null,null,null,null,null,null,null,null,null,null,null,null,null,null,null,null,null,null,null,0,"0","","0"]
[null,"",null,null,null,null,null,null,null,null,null,null,null,null,"",null,null,null,null,null,null,null,null,null,null,null,"","",null,null,"",null,null,null,null,null,null,null,null,null,null,null,null,null,null,null,null,null,null,null,null,null,null,null,0,"0","","0"]
[null,"",null,null,null,null,null,null,null,null,null,null,null,null,"",null,null,null,null,null,null,null,null,null,null,null,"","",null,null,"",null,null,null,null,null,null,null,null,null,null,null,null,null,null,null,null,null,null,null,null,null,null,null,0,"0","","0"]
[null,"",null,null,null,null,null,null,null,null,null,null,null,null,"",null,null,null,null,null,null,null,null,null,null,null,"","",null,null,"",null,null,null,null,null,null,null,null,null,null,null,null,null,null,null,null,null,null,null,null,null,null,null,0,"0","","0"]
[null,"",null,null,null,null,null,null,null,null,null,null,null,null,"",null,null,null,null,null,null,null,null,null,null,null,"","",null,null,"",null,null,null,null,null,null,null,null,null,null,null,null,null,null,null,null,null,null,null,null,null,null,null,0,"0","","0"]
[null,"",null,null,null,null,null,null,null,null,null,null,null,null,"",null,null,null,null,null,null,null,null,null,null,null,"","",null,null,"",null,null,null,null,null,null,null,null,null,null,null,null,null,null,null,null,null,null,null,null,null,null,null,0,"0","","0"]
[null,"",null,null,null,null,null,null,null,null,null,null,null,null,"",null,null,null,null,null,null,null,null,null,null,null,"","",null,null,"",null,null,null,null,null,null,null,null,null,null,null,null,null,null,null,null,null,null,null,null,null,null,null,0,"0","","0"]
[null,"",null,null,null,null,null,null,null,null,null,null,null,null,"",null,null,null,null,null,null,null,null,null,null,null,"","",null,null,"",null,null,null,null,null,null,null,null,null,null,null,null,null,null,null,null,null,null,null,null,null,null,null,0,"0","","0"]
[null,"",null,null,null,null,null,null,null,null,null,null,null,null,"",null,null,null,null,null,null,null,null,null,null,null,"","",null,null,"",null,null,null,null,null,null,null,null,null,null,null,null,null,null,null,null,null,null,null,null,null,null,null,0,"0","","0"]
[null,"",null,null,null,null,null,null,null,null,null,null,null,null,"",null,null,null,null,null,null,null,null,null,null,null,"","",null,null,"",null,null,null,null,null,null,null,null,null,null,null,null,null,null,null,null,null,null,null,null,null,null,null,0,"0","","0"]
[null,"",null,null,null,null,null,null,null,null,null,null,null,null,"",null,null,null,null,null,null,null,null,null,null,null,"","",null,null,"",null,null,null,null,null,null,null,null,null,null,null,null,null,null,null,null,null,null,null,null,null,null,null,0,"0","","0"]
[null,"",null,null,null,null,null,null,null,null,null,null,null,null,"",null,null,null,null,null,null,null,null,null,null,null,"","",null,null,"",null,null,null,null,null,null,null,null,null,null,null,null,null,null,null,null,null,null,null,null,null,null,null,0,"0","","0"]
[null,"",null,null,null,null,null,null,null,null,null,null,null,null,"",null,null,null,null,null,null,null,null,null,null,null,"","",null,null,"",null,null,null,null,null,null,null,null,null,null,null,null,null,null,null,null,null,null,null,null,null,null,null,0,"0","","0"]
[null,"",null,null,null,null,null,null,null,null,null,null,null,null,"",null,null,null,null,null,null,null,null,null,null,null,"","",null,null,"",null,null,null,null,null,null,null,null,null,null,null,null,null,null,null,null,null,null,null,null,null,null,null,0,"0","","0"]
[null,"",null,null,null,null,null,null,null,null,null,null,null,null,"",null,null,null,null,null,null,null,null,null,null,null,"","",null,null,"",null,null,null,null,null,null,null,null,null,null,null,null,null,null,null,null,null,null,null,null,null,null,null,0,"0","","0"]
[null,"",null,null,null,null,null,null,null,null,null,null,null,null,"",null,null,null,null,null,null,null,null,null,null,null,"","",null,null,"",null,null,null,null,null,null,null,null,null,null,null,null,null,null,null,null,null,null,null,null,null,null,null,0,"0","","0"]
[null,"",null,null,null,null,null,null,null,null,null,null,null,null,"",null,null,null,null,null,null,null,null,null,null,null,"","",null,null,"",null,null,null,null,null,null,null,null,null,null,null,null,null,null,null,null,null,null,null,null,null,null,null,0,"0","","0"]
[null,"",null,null,null,null,null,null,null,null,null,null,null,null,"",null,null,null,null,null,null,null,null,null,null,null,"","",null,null,"",null,null,null,null,null,null,null,null,null,null,null,null,null,null,null,null,null,null,null,null,null,null,null,0,"0","","0"]
[null,"",null,null,null,null,null,null,null,null,null,null,null,null,"",null,null,null,null,null,null,null,null,null,null,null,"","",null,null,"",null,null,null,null,null,null,null,null,null,null,null,null,null,null,null,null,null,null,null,null,null,null,null,0,"0","","0"]
[null,"",null,null,null,null,null,null,null,null,null,null,null,null,"",null,null,null,null,null,null,null,null,null,null,null,"","",null,null,"",null,null,null,null,null,null,null,null,null,null,null,null,null,null,null,null,null,null,null,null,null,null,null,0,"0","","0"]
[null,"",null,null,null,null,null,null,null,null,null,null,null,null,"",null,null,null,null,null,null,null,null,null,null,null,"","",null,null,"",null,null,null,null,null,null,null,null,null,null,null,null,null,null,null,null,null,null,null,null,null,null,null,0,"0","","0"]
[null,null,null,null,null,null,null,null,null,null,null,null,null,null,null,null,null,null,null,null,null,null,null,null,null,null,null,null,null,null,"Harun"]
[null,null,null,null,null,null,null,null,null,null,null,null,null,"2020-10-20",null,null,null,null,null,null,null,null,null,null,null,null,null,null,null,null,"Harun"]
[null,null,null,null,null,null,null,null,null,null,null,null,null,"Sinan KILIÇ",null,null,null,null,null,null,null,null,null,null,null,null,null,null,null,null,"Harun"]
[null,"Uygun Görüşle Arz Ederim.",null,null,null,null,null,null,null,null,null,null,null,"Okul Müdürü",null,null,null,null,null,null,null,null,null,null,null,null,null,null,null,null,"Harun"]
[null,"Ahmet BULUT",null,null,null,null,null,null,null,null,null,null,null,null,null,null,null,null,null,null,null,null,null,null,null,null,null,null,null,null,"Harun"]
[null,"İlçe Milli Eğitim Şube Müdürü",null,null,null,null,"ONAY",null,null,null,null,null,null,null,null,null,null,null,null,null,null,null,null,null,null,null,null,null,null,null,"Harun"]
[null,"…....…/…......./2020",null,null,null,null,null,null,null,null,null,null,null,null,null,null,null,null,null,null,null,null,null,null,null,null,null,null,null,null,"Harun"]
[null,"Remzi DİNLER",null,null,null,null,null,null,null,null,null,null,null,null,null,null,null,null,null,null,null,null,null,null,null,null,null,null,null,null,"Harun"]
[null,null,null,null,null,null,"İlçe Milli Eğitim Müdürü",null,null,null,null,null,null,null,null,null,null,null,null,null,null,null,null,null,null,null,null,null,null,null,"Harun"]
[null,null,null,null,null,null,null,null,null,null,null,null,null,null,null,null,null,null,null,null,null,null,null,null,null,null,null,null,null,null,"Harun"]
[]
[]
[]
[]
[]
[]
[]
[]
[]
[]
[]
[]
[]
[]
[]
[]
[]
[]
[]
[]
[]
[]
[]
[]
[]
[]
[]
[]
[]
[]
[]
[]
[]
[]
[]
[]
[]
[]
[]
[]
[]
[]
[]
[]
[]
[]
[]
[]
[]
[]
[]
[]
[]
[]
[]
[]
[]
[]
[]
[]
[]
[]
[]
[]
[]
[]
[]
[]
[]
[]
[]
[]
[]
[]
[]
[]
[]
[]
[]
[]
[]
[]
[]
[]
[]
[]
[]
[]
[]
[]
[]
[]
[]
[]
[]
[]
[]
[]
[]
[]
[]
[]
[]
[]
[]
[]
[]
[]
[]
[]
[]
[]
[]
[]
[]
[]
[]
[]
[]
[]
[]
[]
[]
[]
[]
[]
[null,null,null,null,null,null,"Müdür"]
[null,null,null,null,null,null,"Müdür Başyardımcısı"]
[null,null,null,null,null,null,"Müdür Yardımcısı"]
[null,null,null,null,null,null,"Kadrolu Öğretmen"]
[null,null,null,null,null,null,"Sözleşmeli Öğretmen"]
[null,null,null,null,null,null,"Rehber Öğretmen"]
[null,null,null,null,null,null,"Bil. Formatörü"]
[null,null,null,null,null,null,"Ücretli Öğretmen"]